[Event "Meltwater Champions Chess Tour 2022: Chessable Masters | Prelims"]
[White "Harikrishna, Pentala"]
[Black "Mishra, Abhimanyu"]
[WhiteFideId "5007003"]
[BlackFideId "30920019"]
[WhiteElo "2624"]
[BlackElo "2524"]
[Result "1-0"]
[Round "14"]
[TimeControl "900+10"]
[Date "2022.05.22"]
[WhiteClock "0:02:06"]
[BlackClock "0:00:11"]

1. e4 {[%clk 0:15:20]}  c5 {[%clk 0:15:20]} 2. Nf3 {[%clk 0:15:28]}  d6 {[%clk 0:15:28]} 3. d4 {[%clk 0:15:37]}  cxd4 {[%clk 0:15:37]} 4. Nxd4 {[%clk 0:15:46]}  Nf6 {[%clk 0:15:46]} 5. Nc3 {[%clk 0:15:55]}  a6 {[%clk 0:15:55]} 6. a4 {[%clk 0:16:02]}  e5 {[%clk 0:16:03]} 7. Nf3 {[%clk 0:16:10]}  Be7 {[%clk 0:16:11]} 8. Bg5 {[%clk 0:16:17]}  Be6 {[%clk 0:16:14]} 9. Bxf6 {[%clk 0:16:26]}  Bxf6 {[%clk 0:16:23]} 10. Nd5 {[%clk 0:16:35]}  Nd7 {[%clk 0:16:19]} 11. Bc4 {[%clk 0:16:41]}  Rc8 {[%clk 0:16:23]} 12. Qe2 {[%clk 0:16:48]}  Nb6 {[%clk 0:16:30]} 13. Nxb6 {[%clk 0:16:57]}  Qxb6 {[%clk 0:16:38]} 14. Bxe6 {[%clk 0:17:06]}  fxe6 {[%clk 0:16:47]} 15. c3 {[%clk 0:17:15]}  O-O {[%clk 0:16:52]} 16. O-O {[%clk 0:17:23]}  a5 {[%clk 0:16:06]} 17. Rfd1 {[%clk 0:17:20]}  Be7 {[%clk 0:15:44]} 18. Rd3 {[%clk 0:17:01]}  Rf4 {[%clk 0:15:03]} 19. g3 {[%clk 0:16:56]}  Rf7 {[%clk 0:14:49]} 20. h4 {[%clk 0:16:52]}  Rcf8 {[%clk 0:14:35]} 21. Kg2 {[%clk 0:16:58]}  Qa6 {[%clk 0:14:13]} 22. Re1 {[%clk 0:15:29]}  Qc4 {[%clk 0:13:37]} 23. Qd1 {[%clk 0:14:09]}  h6 {[%clk 0:13:04]} 24. Re2 {[%clk 0:13:08]}  Kh7 {[%clk 0:11:00]} 25. b3 {[%clk 0:12:41]}  Qc6 {[%clk 0:10:52]} 26. c4 {[%clk 0:12:47]}  Qc5 {[%clk 0:10:20]} 27. Ree3 {[%clk 0:11:01]}  Kg8 {[%clk 0:09:14]} 28. Rd2 {[%clk 0:06:53]}  Kh8 {[%clk 0:08:10]} 29. Red3 {[%clk 0:06:24]}  Bd8 {[%clk 0:05:39]} 30. Qh1 {[%clk 0:06:01]}  Qb4 {[%clk 0:03:58]} 31. Re2 {[%clk 0:02:52]}  Bb6 {[%clk 0:03:15]} 32. Qh3 {[%clk 0:02:34]}  Rf6 {[%clk 0:02:12]} 33. Qg4 {[%clk 0:02:42]}  Bc5 {[%clk 0:01:50]} 34. h5 {[%clk 0:02:50]}  Qb6 {[%clk 0:01:11]} 35. Nh4 {[%clk 0:02:13]}  Rxf2+ {[%clk 0:00:52]} 36. Rxf2 {[%clk 0:01:36]}  Rxf2+ {[%clk 0:00:59]} 37. Kh3 {[%clk 0:01:45]}  Qd8 {[%clk 0:00:18]} 38. Qxe6 {[%clk 0:01:23]}  Qg5 {[%clk 0:00:17]} 39. Qe8+ {[%clk 0:01:02]}  Kh7 {[%clk 0:00:25]} 40. Qg6+ {[%clk 0:01:11]}  Kg8 {[%clk 0:00:15]} 41. Rf3 {[%clk 0:00:26]}  Qxg6 {[%clk 0:00:14]} 42. hxg6 {[%clk 0:00:32]}  Rxf3 {[%clk 0:00:21]} 43. Nxf3 {[%clk 0:00:41]}  Kf8 {[%clk 0:00:26]} 44. Kg4 {[%clk 0:00:50]}  Ke7 {[%clk 0:00:21]} 45. Kf5 {[%clk 0:00:58]}  Bf2 {[%clk 0:00:22]} 46. g4 {[%clk 0:01:05]}  Be3 {[%clk 0:00:27]} 47. Ne1 {[%clk 0:01:08]}  b6 {[%clk 0:00:26]} 48. Nd3 {[%clk 0:00:59]}  Bd2 {[%clk 0:00:23]} 49. c5 {[%clk 0:00:50]}  bxc5 {[%clk 0:00:26]} 50. Nb2 {[%clk 0:00:59]}  Kd7 {[%clk 0:00:20]} 51. Nc4 {[%clk 0:01:07]}  Be1 {[%clk 0:00:15]} 52. Nb6+ {[%clk 0:01:16]}  Ke7 {[%clk 0:00:23]} 53. Nd5+ {[%clk 0:01:25]}  Kd7 {[%clk 0:00:31]} 54. Nf6+ {[%clk 0:01:34]}  Ke7 {[%clk 0:00:33]} 55. Nh5 {[%clk 0:01:43]}  Kf8 {[%clk 0:00:30]} 56. Ke6 {[%clk 0:01:52]}  Bb4 {[%clk 0:00:14]} 57. Ng3 {[%clk 0:01:53]}  Ba3 {[%clk 0:00:15]} 58. Nf5 {[%clk 0:02:01]}  Bb2 {[%clk 0:00:13]} 59. Nxd6 {[%clk 0:02:05]}  Bc3 {[%clk 0:00:12]} 60. Kd7 {[%clk 0:02:03]}  Bb4 {[%clk 0:00:15]} 61. Nb7 {[%clk 0:02:00]}  Bc3 {[%clk 0:00:17]} 62. Nxc5 {[%clk 0:02:06]}  Bb4 {[%clk 0:00:23]} 63. Ne6+ {[%clk 0:02:13]}  Kg8 {[%clk 0:00:32]} 64. Ke8 {[%clk 0:02:09]}  Bd6 {[%clk 0:00:25]} 65. Nd8 {[%clk 0:02:16]}  Bb4 {[%clk 0:00:20]} 66. Nc6 {[%clk 0:02:25]}  Bc3 {[%clk 0:00:22]} 67. Ne7+ {[%clk 0:02:16]}  Kh8 {[%clk 0:00:31]} 68. Kf7 {[%clk 0:02:05]}  Bb4 {[%clk 0:00:11]} 69. Nf5 {[%clk 0:02:06]} 1-0


[Site "http://www.chessbomb.com"]

[Event "Meltwater Champions Chess Tour 2022: Chessable Masters | Prelims"]
[White "Jones, Gawain C B"]
[Black "Van Foreest, Jorden"]
[WhiteFideId "409561"]
[BlackFideId "1039784"]
[WhiteElo "2630"]
[BlackElo "2645"]
[Result "0-1"]
[Round "14"]
[TimeControl "900+10"]
[Date "2022.05.22"]
[WhiteClock "0:08:30"]
[BlackClock "0:10:21"]

1. Nf3 {[%clk 0:15:20]}  d5 {[%clk 0:15:20]} 2. g3 {[%clk 0:15:26]}  g6 {[%clk 0:14:36]} 3. Bg2 {[%clk 0:15:33]}  Bg7 {[%clk 0:14:45]} 4. O-O {[%clk 0:15:38]}  e5 {[%clk 0:14:52]} 5. d3 {[%clk 0:15:47]}  Nc6 {[%clk 0:14:48]} 6. e4 {[%clk 0:15:53]}  dxe4 {[%clk 0:14:51]} 7. dxe4 {[%clk 0:16:02]}  Qxd1 {[%clk 0:15:00]} 8. Rxd1 {[%clk 0:16:11]}  Bg4 {[%clk 0:15:05]} 9. Nbd2 {[%clk 0:14:12]}  Nd4 {[%clk 0:14:42]} 10. c3 {[%clk 0:14:15]}  Ne2+ {[%clk 0:14:49]} 11. Kf1 {[%clk 0:14:19]}  Nxc1 {[%clk 0:14:58]} 12. Raxc1 {[%clk 0:14:26]}  O-O-O {[%clk 0:14:21]} 13. h3 {[%clk 0:14:11]}  Bd7 {[%clk 0:14:28]} 14. Ke1 {[%clk 0:13:51]}  f6 {[%clk 0:14:14]} 15. Nc4 {[%clk 0:13:53]}  Nh6 {[%clk 0:14:03]} 16. Nfd2 {[%clk 0:12:53]}  Nf7 {[%clk 0:13:57]} 17. Ne3 {[%clk 0:12:39]}  c6 {[%clk 0:13:13]} 18. Ndc4 {[%clk 0:12:37]}  Kc7 {[%clk 0:13:18]} 19. b4 {[%clk 0:12:45]}  f5 {[%clk 0:12:16]} 20. h4 {[%clk 0:12:29]}  f4 {[%clk 0:11:40]} 21. Nc2 {[%clk 0:12:24]}  Be6 {[%clk 0:11:45]} 22. Bf1 {[%clk 0:12:12]}  g5 {[%clk 0:11:14]} 23. a3 {[%clk 0:10:32]}  fxg3 {[%clk 0:11:13]} 24. fxg3 {[%clk 0:10:39]}  gxh4 {[%clk 0:11:23]} 25. gxh4 {[%clk 0:10:01]}  Bf6 {[%clk 0:11:31]} 26. N2e3 {[%clk 0:10:00]}  Bxh4+ {[%clk 0:11:32]} 27. Ke2 {[%clk 0:10:10]}  Bg5 {[%clk 0:11:32]} 28. Ra1 {[%clk 0:09:49]}  Bf4 {[%clk 0:11:07]} 29. Bg2 {[%clk 0:09:29]}  Ng5 {[%clk 0:10:19]} 30. Rxd8 {[%clk 0:09:35]}  Rxd8 {[%clk 0:10:25]} 31. Rh1 {[%clk 0:09:39]}  Bf7 {[%clk 0:09:47]} 32. Nb2 {[%clk 0:09:22]}  Bg6 {[%clk 0:09:57]} 33. Nd3 {[%clk 0:08:27]}  Nxe4 {[%clk 0:10:04]} 34. Nxf4 {[%clk 0:08:25]}  exf4 {[%clk 0:10:03]} 35. Bxe4 {[%clk 0:08:23]}  Bxe4 {[%clk 0:10:11]} 36. Rh4 {[%clk 0:08:30]}  Bd3+ {[%clk 0:10:21]} 0-1


[Site "http://www.chessbomb.com"]

[Event "Meltwater Champions Chess Tour 2022: Chessable Masters | Prelims"]
[White "Anton Guijarro, David"]
[Black "Mamedyarov, Shakhriyar"]
[WhiteFideId "2285525"]
[BlackFideId "13401319"]
[WhiteElo "2633"]
[BlackElo "2699"]
[Result "1/2-1/2"]
[Round "14"]
[TimeControl "900+10"]
[Date "2022.05.22"]
[WhiteClock "0:01:05"]
[BlackClock "0:01:13"]

1. e4 {[%clk 0:15:20]}  e5 {[%clk 0:15:20]} 2. Nf3 {[%clk 0:15:28]}  Nc6 {[%clk 0:15:14]} 3. Bb5 {[%clk 0:15:35]}  a6 {[%clk 0:15:22]} 4. Ba4 {[%clk 0:15:43]}  Nf6 {[%clk 0:15:31]} 5. d3 {[%clk 0:15:51]}  b5 {[%clk 0:15:40]} 6. Bb3 {[%clk 0:16:00]}  Bc5 {[%clk 0:15:49]} 7. Nc3 {[%clk 0:16:08]}  h6 {[%clk 0:15:30]} 8. Nd5 {[%clk 0:16:07]}  d6 {[%clk 0:15:29]} 9. c3 {[%clk 0:16:12]}  Rb8 {[%clk 0:15:38]} 10. O-O {[%clk 0:16:13]}  O-O {[%clk 0:15:35]} 11. Bc2 {[%clk 0:16:10]}  Ba7 {[%clk 0:15:08]} 12. h3 {[%clk 0:15:53]}  Be6 {[%clk 0:13:49]} 13. Nxf6+ {[%clk 0:15:51]}  Qxf6 {[%clk 0:14:00]} 14. Be3 {[%clk 0:15:59]}  Qg6 {[%clk 0:13:06]} 15. Kh2 {[%clk 0:14:32]}  Qh5 {[%clk 0:12:53]} 16. d4 {[%clk 0:09:55]}  Bg4 {[%clk 0:10:36]} 17. d5 {[%clk 0:09:58]}  Bxe3 {[%clk 0:10:44]} 18. fxe3 {[%clk 0:10:04]}  Ne7 {[%clk 0:10:33]} 19. Qe1 {[%clk 0:09:30]}  f5 {[%clk 0:08:16]} 20. Qg3 {[%clk 0:05:08]}  fxe4 {[%clk 0:06:58]} 21. Qxg4 {[%clk 0:04:45]}  Qxg4 {[%clk 0:07:06]} 22. hxg4 {[%clk 0:04:55]}  exf3 {[%clk 0:07:15]} 23. gxf3 {[%clk 0:04:38]}  g5 {[%clk 0:06:36]} 24. Be4 {[%clk 0:04:22]}  Kg7 {[%clk 0:06:39]} 25. Kg3 {[%clk 0:03:55]}  Ng8 {[%clk 0:06:26]} 26. Bf5 {[%clk 0:03:54]}  h5 {[%clk 0:05:06]} 27. b4 {[%clk 0:02:53]}  Nf6 {[%clk 0:03:20]} 28. e4 {[%clk 0:02:44]}  hxg4 {[%clk 0:02:38]} 29. fxg4 {[%clk 0:02:49]}  a5 {[%clk 0:02:21]} 30. Rh1 {[%clk 0:01:38]}  Ra8 {[%clk 0:02:10]} 31. a3 {[%clk 0:01:32]}  Ra6 {[%clk 0:01:37]} 32. a4 {[%clk 0:01:27]}  axb4 {[%clk 0:01:43]} 33. axb5 {[%clk 0:01:36]}  Ra3 {[%clk 0:01:40]} 34. Rxa3 {[%clk 0:01:42]}  bxa3 {[%clk 0:01:50]} 35. Ra1 {[%clk 0:01:48]}  Ra8 {[%clk 0:01:59]} 36. Kf3 {[%clk 0:01:41]}  Ng8 {[%clk 0:01:27]} 37. Ke3 {[%clk 0:01:38]}  Ne7 {[%clk 0:01:36]} 38. Be6 {[%clk 0:01:22]}  Ng6 {[%clk 0:01:30]} 39. Kd2 {[%clk 0:00:47]}  Nf4 {[%clk 0:01:34]} 40. Bf5 {[%clk 0:00:46]}  Kf6 {[%clk 0:00:45]} 41. Kc2 {[%clk 0:00:42]}  a2 {[%clk 0:00:46]} 42. Kb3 {[%clk 0:00:41]}  Nd3 {[%clk 0:00:54]} 43. Kc2 {[%clk 0:00:30]}  Nc5 {[%clk 0:01:01]} 44. Kb2 {[%clk 0:00:38]}  Nd3+ {[%clk 0:01:10]} 45. Kc2 {[%clk 0:00:47]}  Nc5 {[%clk 0:01:19]} 46. Kb2 {[%clk 0:00:56]}  Nd3+ {[%clk 0:01:13]} 47. Kc2 {[%clk 0:01:05]} 1/2-1/2


[Site "http://www.chessbomb.com"]

[Event "Meltwater Champions Chess Tour 2022: Chessable Masters | Prelims"]
[White "Ding, Liren"]
[Black "Hansen, Eric"]
[WhiteFideId "8603677"]
[BlackFideId "2606771"]
[WhiteElo "2836"]
[BlackElo "2579"]
[Result "1/2-1/2"]
[Round "14"]
[TimeControl "900+10"]
[Date "2022.05.22"]
[WhiteClock "0:00:57"]
[BlackClock "0:01:03"]

1. c4 {[%clk 0:15:20]}  Nf6 {[%clk 0:15:20]} 2. Nf3 {[%clk 0:15:25]}  c5 {[%clk 0:15:21]} 3. Nc3 {[%clk 0:15:27]}  d5 {[%clk 0:15:12]} 4. cxd5 {[%clk 0:15:36]}  Nxd5 {[%clk 0:15:21]} 5. e3 {[%clk 0:15:44]}  Nc6 {[%clk 0:15:02]} 6. Bb5 {[%clk 0:15:39]}  Nxc3 {[%clk 0:15:01]} 7. bxc3 {[%clk 0:15:13]}  Bd7 {[%clk 0:15:09]} 8. O-O {[%clk 0:14:25]}  e6 {[%clk 0:14:45]} 9. d4 {[%clk 0:14:30]}  Be7 {[%clk 0:14:53]} 10. e4 {[%clk 0:13:27]}  a6 {[%clk 0:14:59]} 11. Be2 {[%clk 0:12:51]}  O-O {[%clk 0:13:01]} 12. Bf4 {[%clk 0:11:50]}  cxd4 {[%clk 0:09:56]} 13. cxd4 {[%clk 0:12:00]}  Qa5 {[%clk 0:10:06]} 14. Rb1 {[%clk 0:10:36]}  Rfd8 {[%clk 0:05:51]} 15. Rxb7 {[%clk 0:06:43]}  Qxa2 {[%clk 0:05:52]} 16. Bc7 {[%clk 0:06:52]}  Rdc8 {[%clk 0:05:15]} 17. Bb6 {[%clk 0:06:59]}  Bd8 {[%clk 0:02:31]} 18. d5 {[%clk 0:06:10]}  exd5 {[%clk 0:02:39]} 19. exd5 {[%clk 0:06:20]}  Nb8 {[%clk 0:02:47]} 20. Bxd8 {[%clk 0:03:57]}  Rxd8 {[%clk 0:02:54]} 21. Ne5 {[%clk 0:04:06]}  Ba4 {[%clk 0:02:51]} 22. Qe1 {[%clk 0:04:05]}  Nd7 {[%clk 0:02:29]} 23. Nc6 {[%clk 0:01:26]}  Re8 {[%clk 0:00:34]} 24. Rxd7 {[%clk 0:01:34]}  Qxe2 {[%clk 0:00:11]} 25. Ne7+ {[%clk 0:01:28]}  Rxe7 {[%clk 0:00:10]} 26. Rxe7 {[%clk 0:01:38]}  Qd3 {[%clk 0:00:13]} 27. Qe5 {[%clk 0:01:16]}  Bb5 {[%clk 0:00:14]} 28. Re1 {[%clk 0:01:24]}  h6 {[%clk 0:00:20]} 29. h3 {[%clk 0:01:26]}  Rd8 {[%clk 0:00:27]} 30. Qc7 {[%clk 0:01:30]}  Rxd5 {[%clk 0:00:22]} 31. Rxf7 {[%clk 0:01:22]}  Rg5 {[%clk 0:00:25]} 32. h4 {[%clk 0:01:07]}  Rg6 {[%clk 0:00:27]} 33. h5 {[%clk 0:01:00]}  Rg5 {[%clk 0:00:35]} 34. Rfe7 {[%clk 0:00:46]}  Qd5 {[%clk 0:00:16]} 35. Qc8+ {[%clk 0:00:12]}  Kh7 {[%clk 0:00:22]} 36. Qh3 {[%clk 0:00:18]}  Bc6 {[%clk 0:00:25]} 37. f3 {[%clk 0:00:25]}  Qc5+ {[%clk 0:00:22]} 38. R7e3 {[%clk 0:00:31]}  Rxh5 {[%clk 0:00:21]} 39. Qe6 {[%clk 0:00:36]}  Rg5 {[%clk 0:00:28]} 40. Kf2 {[%clk 0:00:36]}  a5 {[%clk 0:00:26]} 41. g4 {[%clk 0:00:38]}  Bd5 {[%clk 0:00:25]} 42. Qe7 {[%clk 0:00:42]}  Qc4 {[%clk 0:00:31]} 43. Qa3 {[%clk 0:00:32]}  Rg6 {[%clk 0:00:12]} 44. Qd3 {[%clk 0:00:33]}  Qc5 {[%clk 0:00:17]} 45. Kg3 {[%clk 0:00:32]}  Bc4 {[%clk 0:00:18]} 46. Qc2 {[%clk 0:00:37]}  Qd6+ {[%clk 0:00:25]} 47. Kh3 {[%clk 0:00:39]}  Bf7 {[%clk 0:00:24]} 48. Re5 {[%clk 0:00:31]}  Qb4 {[%clk 0:00:14]} 49. Qf5 {[%clk 0:00:34]}  Qb3 {[%clk 0:00:11]} 50. R1e3 {[%clk 0:00:35]}  Qc4 {[%clk 0:00:18]} 51. Re7 {[%clk 0:00:39]}  Qf1+ {[%clk 0:00:18]} 52. Kg3 {[%clk 0:00:48]}  Qg1+ {[%clk 0:00:25]} 53. Kh3 {[%clk 0:00:31]}  Qh1+ {[%clk 0:00:34]} 54. Kg3 {[%clk 0:00:40]}  Qg1+ {[%clk 0:00:43]} 55. Kh3 {[%clk 0:00:48]}  Qh1+ {[%clk 0:00:53]} 56. Kg3 {[%clk 0:00:57]}  Qg1+ {[%clk 0:01:03]} 1/2-1/2


[Site "http://www.chessbomb.com"]

[Event "Meltwater Champions Chess Tour 2022: Chessable Masters | Prelims"]
[White "Van Foreest, Jorden"]
[Black "Anton Guijarro, David"]
[WhiteFideId "1039784"]
[BlackFideId "2285525"]
[WhiteElo "2645"]
[BlackElo "2633"]
[Result "1/2-1/2"]
[Round "15"]
[TimeControl "900+10"]
[Date "2022.05.22"]
[WhiteClock "0:00:45"]
[BlackClock "0:00:51"]

1. e4 {[%clk 0:15:20]}  e5 {[%clk 0:15:20]} 2. Nf3 {[%clk 0:15:28]}  Nc6 {[%clk 0:15:28]} 3. Bc4 {[%clk 0:15:38]}  Bc5 {[%clk 0:15:35]} 4. c3 {[%clk 0:15:45]}  Nf6 {[%clk 0:15:43]} 5. d3 {[%clk 0:15:54]}  d6 {[%clk 0:15:51]} 6. O-O {[%clk 0:16:01]}  a5 {[%clk 0:15:57]} 7. Re1 {[%clk 0:15:57]}  O-O {[%clk 0:16:01]} 8. h3 {[%clk 0:15:39]}  Ba7 {[%clk 0:16:01]} 9. a4 {[%clk 0:15:14]}  h6 {[%clk 0:14:48]} 10. Nbd2 {[%clk 0:15:04]}  Be6 {[%clk 0:14:42]} 11. Bxe6 {[%clk 0:15:11]}  fxe6 {[%clk 0:14:51]} 12. Nf1 {[%clk 0:15:14]}  Nh5 {[%clk 0:14:23]} 13. Be3 {[%clk 0:15:22]}  Qe8 {[%clk 0:13:58]} 14. Bxa7 {[%clk 0:15:12]}  Rxa7 {[%clk 0:14:03]} 15. Re3 {[%clk 0:15:18]}  Nf4 {[%clk 0:10:51]} 16. h4 {[%clk 0:15:02]}  Qg6 {[%clk 0:10:17]} 17. g3 {[%clk 0:15:08]}  d5 {[%clk 0:09:39]} 18. N1h2 {[%clk 0:14:06]}  d4 {[%clk 0:09:27]} 19. Re1 {[%clk 0:13:44]}  Nh5 {[%clk 0:06:28]} 20. Kh1 {[%clk 0:13:48]}  Nf6 {[%clk 0:06:26]} 21. Ng1 {[%clk 0:13:40]}  Nd7 {[%clk 0:06:05]} 22. Ngf3 {[%clk 0:09:58]}  Nc5 {[%clk 0:05:47]} 23. Qc2 {[%clk 0:09:24]}  b6 {[%clk 0:05:40]} 24. Rab1 {[%clk 0:09:25]}  Nd7 {[%clk 0:02:39]} 25. Qb3 {[%clk 0:09:02]}  Qe8 {[%clk 0:02:20]} 26. Rec1 {[%clk 0:08:29]}  Nc5 {[%clk 0:02:16]} 27. Qc4 {[%clk 0:08:00]}  dxc3 {[%clk 0:01:49]} 28. bxc3 {[%clk 0:08:07]}  Nd8 {[%clk 0:01:18]} 29. Ra1 {[%clk 0:07:34]}  Nf7 {[%clk 0:01:20]} 30. Rd1 {[%clk 0:07:42]}  Ra8 {[%clk 0:01:22]} 31. Qa2 {[%clk 0:07:20]}  Rd8 {[%clk 0:01:21]} 32. Qc2 {[%clk 0:07:29]}  Nd7 {[%clk 0:01:06]} 33. Ng4 {[%clk 0:07:05]}  h5 {[%clk 0:01:05]} 34. Ne3 {[%clk 0:07:08]}  Nd6 {[%clk 0:01:09]} 35. Kg2 {[%clk 0:07:05]}  Qg6 {[%clk 0:01:15]} 36. Qe2 {[%clk 0:06:32]}  Rf6 {[%clk 0:01:12]} 37. Rf1 {[%clk 0:06:07]}  Rdf8 {[%clk 0:01:14]} 38. Ng5 {[%clk 0:06:16]}  Nf7 {[%clk 0:01:18]} 39. Nh3 {[%clk 0:05:39]}  Nd6 {[%clk 0:01:24]} 40. f3 {[%clk 0:05:43]}  Nf7 {[%clk 0:00:50]} 41. Nc4 {[%clk 0:05:33]}  Qh6 {[%clk 0:00:53]} 42. d4 {[%clk 0:04:43]}  g5 {[%clk 0:00:35]} 43. Nxe5 {[%clk 0:02:50]}  Ndxe5 {[%clk 0:00:44]} 44. dxe5 {[%clk 0:03:00]}  Rg6 {[%clk 0:00:53]} 45. hxg5 {[%clk 0:03:10]}  Nxg5 {[%clk 0:01:02]} 46. Qe3 {[%clk 0:02:42]}  h4 {[%clk 0:00:46]} 47. g4 {[%clk 0:02:23]}  Qg7 {[%clk 0:00:40]} 48. Nxg5 {[%clk 0:01:49]}  Rxg5 {[%clk 0:00:50]} 49. Rh1 {[%clk 0:01:47]}  Rxg4+ {[%clk 0:00:36]} 50. fxg4 {[%clk 0:01:56]}  Qxg4+ {[%clk 0:00:46]} 51. Kh2 {[%clk 0:02:06]}  Rf3 {[%clk 0:00:51]} 52. Qxf3 {[%clk 0:01:09]}  Qxf3 {[%clk 0:01:01]} 53. Rhg1+ {[%clk 0:01:16]}  Kh7 {[%clk 0:01:05]} 54. Raf1 {[%clk 0:01:20]}  Qe2+ {[%clk 0:01:02]} 55. Kh3 {[%clk 0:01:28]}  Qe3+ {[%clk 0:01:03]} 56. Kxh4 {[%clk 0:01:30]}  Qh6+ {[%clk 0:00:37]} 57. Kg4 {[%clk 0:01:34]}  Qe3 {[%clk 0:00:19]} 58. Rf7+ {[%clk 0:01:20]}  Kg8 {[%clk 0:00:22]} 59. Rff1 {[%clk 0:01:24]}  Qxe4+ {[%clk 0:00:19]} 60. Kh3+ {[%clk 0:01:28]}  Kh7 {[%clk 0:00:23]} 61. Rg3 {[%clk 0:01:37]}  Kh6 {[%clk 0:00:19]} 62. Kh2 {[%clk 0:01:22]}  Qe2+ {[%clk 0:00:24]} 63. Kg1 {[%clk 0:01:31]}  Qxe5 {[%clk 0:00:22]} 64. Rg2 {[%clk 0:01:39]}  Qe3+ {[%clk 0:00:26]} 65. Kh1 {[%clk 0:01:48]}  Kh5 {[%clk 0:00:27]} 66. c4 {[%clk 0:01:12]}  Qe5 {[%clk 0:00:20]} 67. Rh2+ {[%clk 0:01:09]}  Kg4 {[%clk 0:00:27]} 68. Rg2+ {[%clk 0:00:39]}  Kh3 {[%clk 0:00:33]} 69. Rf3+ {[%clk 0:00:45]}  Kh4 {[%clk 0:00:42]} 70. Rg8 {[%clk 0:00:31]}  Qe1+ {[%clk 0:00:38]} 71. Kg2 {[%clk 0:00:23]}  Qe2+ {[%clk 0:00:43]} 72. Rf2 {[%clk 0:00:31]}  Qe4+ {[%clk 0:00:45]} 73. Kg1 {[%clk 0:00:29]}  Qe1+ {[%clk 0:00:48]} 74. Rf1 {[%clk 0:00:17]}  Qe3+ {[%clk 0:00:54]} 75. Kh1 {[%clk 0:00:24]}  Qe4+ {[%clk 0:00:31]} 76. Kh2 {[%clk 0:00:28]}  Qe2+ {[%clk 0:00:30]} 77. Kg1 {[%clk 0:00:37]}  Qe3+ {[%clk 0:00:37]} 78. Rf2 {[%clk 0:00:44]}  Qe1+ {[%clk 0:00:41]} 79. Kg2 {[%clk 0:00:53]}  Qe4+ {[%clk 0:00:50]} 80. Kf1 {[%clk 0:01:00]}  Qb1+ {[%clk 0:00:48]} 81. Kg2 {[%clk 0:00:45]}  Qe4+ {[%clk 0:00:51]} 1/2-1/2


[Site "http://www.chessbomb.com"]

[Event "Meltwater Champions Chess Tour 2022: Chessable Masters | Prelims"]
[White "Mishra, Abhimanyu"]
[Black "Jones, Gawain C B"]
[WhiteFideId "30920019"]
[BlackFideId "409561"]
[WhiteElo "2524"]
[BlackElo "2630"]
[Result "0-1"]
[Round "15"]
[TimeControl "900+10"]
[Date "2022.05.22"]
[WhiteClock "0:00:30"]
[BlackClock "0:03:09"]

1. e4 {[%clk 0:15:20]}  e5 {[%clk 0:15:20]} 2. Nf3 {[%clk 0:15:28]}  Nc6 {[%clk 0:15:28]} 3. Bc4 {[%clk 0:15:36]}  Nf6 {[%clk 0:15:37]} 4. d3 {[%clk 0:15:45]}  Bc5 {[%clk 0:15:46]} 5. c3 {[%clk 0:15:53]}  d6 {[%clk 0:15:54]} 6. O-O {[%clk 0:16:02]}  O-O {[%clk 0:15:50]} 7. Re1 {[%clk 0:15:34]}  a5 {[%clk 0:15:45]} 8. Bg5 {[%clk 0:15:32]}  h6 {[%clk 0:15:47]} 9. Bh4 {[%clk 0:15:39]}  Ba7 {[%clk 0:15:32]} 10. Na3 {[%clk 0:15:22]}  Kh8 {[%clk 0:14:21]} 11. Nc2 {[%clk 0:13:29]}  g5 {[%clk 0:14:13]} 12. Bg3 {[%clk 0:13:35]}  Be6 {[%clk 0:13:18]} 13. Bb5 {[%clk 0:13:10]}  Bd7 {[%clk 0:10:53]} 14. d4 {[%clk 0:11:00]}  Nxd4 {[%clk 0:10:18]} 15. Nfxd4 {[%clk 0:09:50]}  exd4 {[%clk 0:10:25]} 16. Bxd7 {[%clk 0:09:57]}  Nxd7 {[%clk 0:10:19]} 17. cxd4 {[%clk 0:08:43]}  Qf6 {[%clk 0:09:40]} 18. Qd3 {[%clk 0:07:19]}  h5 {[%clk 0:08:27]} 19. f3 {[%clk 0:06:25]}  Ne5 {[%clk 0:08:15]} 20. Qd2 {[%clk 0:05:32]}  Ng6 {[%clk 0:06:43]} 21. Bf2 {[%clk 0:05:13]}  Nf4 {[%clk 0:06:23]} 22. Rad1 {[%clk 0:04:51]}  d5 {[%clk 0:06:18]} 23. Ne3 {[%clk 0:04:18]}  Rad8 {[%clk 0:05:04]} 24. Nf5 {[%clk 0:03:56]}  Rfe8 {[%clk 0:04:57]} 25. Qxa5 {[%clk 0:02:12]}  Bb6 {[%clk 0:05:03]} 26. Qc3 {[%clk 0:02:11]}  h4 {[%clk 0:04:45]} 27. Kh1 {[%clk 0:01:39]}  Re6 {[%clk 0:04:02]} 28. h3 {[%clk 0:00:57]}  Rde8 {[%clk 0:03:55]} 29. Qc2 {[%clk 0:01:03]}  Qg6 {[%clk 0:02:56]} 30. Bg1 {[%clk 0:00:42]}  Qxf5 {[%clk 0:02:35]} 31. exf5 {[%clk 0:00:49]}  Rxe1 {[%clk 0:02:44]} 32. Rxe1 {[%clk 0:00:17]}  Rxe1 {[%clk 0:02:52]} 33. Qd2 {[%clk 0:00:13]}  Re2 {[%clk 0:02:54]} 34. Qb4 {[%clk 0:00:18]}  Kg8 {[%clk 0:02:55]} 35. Bh2 {[%clk 0:00:16]}  Nd3 {[%clk 0:02:58]} 36. Qc3 {[%clk 0:00:18]}  Nf2+ {[%clk 0:02:37]} 37. Kg1 {[%clk 0:00:26]}  Nd1 {[%clk 0:02:44]} 38. Qb4 {[%clk 0:00:29]}  c5 {[%clk 0:02:43]} 39. Qb5 {[%clk 0:00:10]}  Re1+ {[%clk 0:02:48]} 40. Qf1 {[%clk 0:00:20]}  Rxf1+ {[%clk 0:02:53]} 41. Kxf1 {[%clk 0:00:30]}  c4 {[%clk 0:02:39]} 42. Ke2 {[%clk 0:00:28]}  Nxb2 {[%clk 0:02:48]} 43. Be5 {[%clk 0:00:37]}  Nd3 {[%clk 0:02:33]} 44. Bf6 {[%clk 0:00:22]}  Nc1+ {[%clk 0:02:40]} 45. Kd2 {[%clk 0:00:28]}  Nxa2 {[%clk 0:02:49]} 46. Bxg5 {[%clk 0:00:35]}  Bxd4 {[%clk 0:02:57]} 47. Bxh4 {[%clk 0:00:44]}  b5 {[%clk 0:03:01]} 48. Kc2 {[%clk 0:00:30]}  b4 {[%clk 0:03:09]} 0-1


[Site "http://www.chessbomb.com"]

[Event "Meltwater Champions Chess Tour 2022: Chessable Masters | Prelims"]
[White "Shankland, Sam"]
[Black "Harikrishna, Pentala"]
[WhiteFideId "2004887"]
[BlackFideId "5007003"]
[WhiteElo "2616"]
[BlackElo "2624"]
[Result "1-0"]
[Round "15"]
[TimeControl "900+10"]
[Date "2022.05.22"]
[WhiteClock "0:02:36"]
[BlackClock "0:02:37"]

1. d4 {[%clk 0:15:20]}  Nf6 {[%clk 0:15:20]} 2. c4 {[%clk 0:15:28]}  e6 {[%clk 0:15:28]} 3. Nf3 {[%clk 0:15:37]}  d5 {[%clk 0:15:34]} 4. Nc3 {[%clk 0:15:46]}  Bb4 {[%clk 0:15:38]} 5. cxd5 {[%clk 0:15:54]}  exd5 {[%clk 0:15:46]} 6. Bg5 {[%clk 0:16:03]}  h6 {[%clk 0:15:44]} 7. Bh4 {[%clk 0:16:12]}  Bf5 {[%clk 0:14:43]} 8. Qb3 {[%clk 0:15:31]}  Nc6 {[%clk 0:13:24]} 9. e3 {[%clk 0:15:39]}  O-O {[%clk 0:13:17]} 10. Bxf6 {[%clk 0:14:25]}  Qxf6 {[%clk 0:13:21]} 11. Qxd5 {[%clk 0:14:34]}  Rfe8 {[%clk 0:11:39]} 12. Be2 {[%clk 0:14:22]}  Be4 {[%clk 0:10:58]} 13. Qc4 {[%clk 0:12:36]}  b5 {[%clk 0:08:02]} 14. Qb3 {[%clk 0:09:08]}  Bxf3 {[%clk 0:07:07]} 15. gxf3 {[%clk 0:09:16]}  Qh4 {[%clk 0:06:14]} 16. O-O-O {[%clk 0:05:32]}  Qxf2 {[%clk 0:06:01]} 17. Bxb5 {[%clk 0:05:40]}  Qxe3+ {[%clk 0:06:06]} 18. Rd2 {[%clk 0:05:10]}  Nxd4 {[%clk 0:04:32]} 19. Qxb4 {[%clk 0:05:17]}  c5 {[%clk 0:04:23]} 20. Qc4 {[%clk 0:04:24]}  Red8 {[%clk 0:04:26]} 21. Rd1 {[%clk 0:04:04]}  Rd6 {[%clk 0:02:50]} 22. Kb1 {[%clk 0:03:36]}  Rc8 {[%clk 0:02:49]} 23. Qd3 {[%clk 0:02:57]}  Qe5 {[%clk 0:02:31]} 24. Qe4 {[%clk 0:02:34]}  Qh5 {[%clk 0:02:40]} 25. Qg4 {[%clk 0:02:29]}  Qe5 {[%clk 0:02:37]} 26. Qxc8+ {[%clk 0:02:36]} 1-0


[Site "http://www.chessbomb.com"]